bitfinex/quotes_ETHUSD_20240824
["timestamp","ask_amount","ask_price","bid_price","bid_amount"]
[1724501690934,4.02486306,2763.7,2763.6,7.23691]
[1724501695631,4.02500088,2763.7,2763.6,7.23691]
[1724501696004,2.89805255,2763.7,2763.6,7.23691]
[1724501696334,5.33902137,2763.7,2763.6,7.23691]
[1724501698730,6.85133673,2763.7,2763.6,7.23691]
[1724501700239,6.85172773,2763.7,2763.6,7.23691]
[1724501701042,5.33941237,2763.7,2763.6,7.23691]
[1724501701341,6.85172773,2763.7,2763.6,7.23691]
[1724501701937,5.5378732,2763.7,2763.6,7.23691]
[1724501703309,5.5378732,2763.7,2763.1,9.8782]
[1724501703654,5.5378732,2763.7,2763.2,3.61888]
[1724501703655,1.13402735,2763.3,2763.2,3.61888]
[1724501703853,5.53618818,2763.3,2763.2,3.61888]
[1724501704663,2.43891644,2763.3,2763.2,7.23787]
[1724501704867,3.19467116,2763.3,2763.2,7.23787]
[1724501705164,1.51027439,2763.3,2763.2,15.35872205]
[1724501705311,0.75583624,2763.7,2763.6,3.61846]
[1724501705516,2.2678117,2764.3,2763.6,3.61846]
[1724501705517,1.8894942,2764.0,2763.9,7.23614]
[1724501705707,1.51231536,2764.2,2764.1,9.62452]
[1724501705708,0.75583624,2764.2,2764.1,9.62452]
[1724501705914,2.2681516,2764.5,2764.4,7.23484]
[1724501706224,1.13365796,2764.6,2764.4,7.23484]
[1724501706225,2.26842325,2764.6,2764.5,10.85187]
[1724501706432,1.51231536,2764.6,2764.5,13.85187]
[1724501706628,0.75610789,2764.8,2764.7,7.23404]
[1724501707310,0.75610789,2764.9,2764.7,7.23404]
[1724501707660,0.75610789,2764.9,2764.8,3.61689]
[1724501707873,1.13365796,2764.9,2764.8,3.61689]
[1724501708045,1.13365796,2764.9,2764.7,3.61702]
[1724501708250,1.13365796,2764.9,2763.6,1.5214776]
[1724501708251,1.13365796,2764.8,2764.3,3.61751]
[1724501708563,1.13365796,2764.8,2764.4,3.6173]
[1724501708564,0.75496061,2764.5,2764.4,3.6173]
[1724501709345,0.75496061,2764.6,2764.4,3.6173]
[1724501710331,0.75496061,2764.6,2764.3,3.61752]
[1724501710512,0.75496061,2764.6,2764.4,3.6173]
[1724501711143,0.75496061,2764.6,2764.5,3.61729]
[1724501713571,0.75496061,2764.7,2764.5,3.61729]
[1724501713977,0.75496061,2764.6,2764.5,3.61729]
[1724501714526,0.75496061,2764.6,2764.4,3.61735]
[1724501714527,0.75496061,2764.7,2764.6,3.61715]
[1724501715266,1.71698839,2764.7,2764.4,3.61735]
[1724501715477,0.75496061,2764.7,2764.5,3.61726]
[1724501715815,0.96188779,2764.6,2764.5,3.61726]
[1724501716277,0.96188779,2764.6,2764.4,3.61735]
[1724501716569,2.3143,2764.6,2764.4,3.61735]
[1724501716915,0.96173433,2764.5,2764.4,3.61735]
[1724501717190,1.71669494,2764.5,2764.4,3.61735]
[1724501717611,1.71669494,2764.5,2764.2,3.61766]
[1724501717818,2.11967317,2764.4,2764.2,3.61766]
[1724501718017,0.75496061,2764.4,2764.2,3.61766]
[1724501718473,2.02375113,2764.5,2764.2,3.61766]
[1724501718674,0.96135969,2764.4,2764.2,3.61766]
[1724501719004,2.02375113,2764.5,2764.2,3.61766]
[1724501719204,1.71633171,2764.4,2764.2,3.61766]
[1724501719363,1.71623571,2764.3,2764.0,3.61785]
[1724501719677,0.96129579,2764.2,2764.0,3.61785]
[1724501719838,0.75496061,2764.2,2764.0,3.61785]
[1724501721497,1.71623773,2764.1,2764.0,3.61785]
[1724501721847,0.96127712,2764.1,2764.0,3.61785]
[1724501722043,2.12798465,2764.1,2764.0,3.61785]
[1724501723444,1.71623773,2764.1,2764.0,3.61785]
[1724501723840,1.71625443,2764.1,2764.0,3.61785]
[1724501725261,2.37441123,2764.1,2764.0,3.61785]
[1724501729707,2.37441123,2764.1,2763.8,3.6181]
[1724501729874,1.61945062,2764.0,2763.9,3.61807]
[1724501730607,0.6581568,2764.0,2763.9,3.61807]
[1724501731908,0.75496061,2764.1,2764.0,3.61794]
[1724501732201,2.37388864,2764.1,2764.0,3.61794]
[1724501733476,2.37387237,2764.1,2764.0,3.61794]
[1724501738228,2.37387237,2764.1,2764.0,3.61794]
[1724501738429,2.3665401,2764.1,2764.0,3.61794]
[1724501741601,1.61157949,2764.1,2764.0,3.61794]
[1724501741852,2.36580182,2764.1,2764.0,3.61794]
[1724501743363,2.36650264,2764.1,2764.0,3.61794]
[1724501744905,2.36650264,2764.1,2764.0,7.23588]
[1724501745103,0.6539846,2764.1,2764.0,7.959468]
[1724501745516,0.75422233,2764.2,2764.1,3.61781]
[1724501745722,2.36669707,2764.2,2764.1,3.61781]
[1724501745924,2.3669103,2764.2,2764.1,3.61781]
[1724501746125,1.61247474,2764.2,2764.1,3.61781]
[1724501746820,2.36695748,2764.2,2764.1,3.61781]
[1724501748056,0.75448274,2764.2,2764.1,3.61781]
[1724501748235,1.61258287,2764.2,2764.1,3.61781]
[1724501748610,2.36712049,2764.2,2764.1,3.61781]
[1724501749950,2.74502379,2764.2,2764.1,3.61781]
[1724501750108,2.36721493,2764.2,2764.1,3.61781]
[1724501750307,2.74502379,2764.2,2764.1,3.61781]
[1724501751007,1.61258287,2764.2,2764.1,3.61781]
[1724501751968,2.74502379,2764.2,2764.1,3.61781]
[1724501752395,4.39379134,2764.2,2764.1,3.61781]
[1724501752541,2.88147598,2764.2,2764.1,3.61781]
[1724501753181,2.74521187,2764.2,2764.1,3.61781]
[1724501753354,2.36799163,2764.2,2764.1,11.62249752]
[1724501753576,0.75540876,2764.3,2764.2,7.23536]
[1724501753743,2.36995104,2764.3,2764.2,7.23536]
[1724501753946,2.36995104,2764.3,2764.2,8.75936975]
[1724501754585,1.61454228,2764.3,2764.2,8.75936975]
[1724501754785,2.74717128,2764.3,2764.0,3.61783]
[1724501755107,1.13311905,2764.1,2764.0,3.61783]
[1724501755262,2.74766133,2764.1,2764.0,3.61783]
[1724501757917,2.74775717,2764.1,2764.0,3.61783]
[1724501759438,6.87133853,2764.1,2763.9,3.61806]
[1724501759640,4.39673853,2764.0,2763.9,3.61806]
[1724501759849,2.88442317,2764.0,2763.9,3.61806]
[1724501760503,4.39673853,2764.0,2763.9,3.61806]
[1724501760906,4.77302276,2764.0,2763.9,3.61806]
[1724501761106,2.88442317,2764.0,2763.9,3.61806]
[1724501761307,4.77302276,2764.0,2763.9,3.61806]
[1724501761522,4.77302276,2764.0,2763.3,10.41912903]
[1724501761523,6.89345461,2764.0,2763.5,3.61858]
[1724501761698,1.13375573,2763.6,2763.5,3.61858]
[1724501761902,2.74839385,2763.6,2763.5,3.61858]
[1724501763673,2.74839385,2763.6,2763.5,7.23717]
[1724501765876,2.74868694,2763.6,2763.5,7.23717]
[1724501766240,2.74868694,2763.6,2763.5,8.622769]
[1724501766595,2.74868694,2763.6,2763.5,11.054469]
[1724501766939,1.61493121,2763.6,2763.5,11.054469]
[1724501767361,2.37053494,2763.6,2763.5,11.054469]
[1724501770311,1.61493121,2763.6,2763.5,11.054469]
[1724501770621,2.37053494,2763.6,2763.5,11.054469]
[1724501770824,1.410566,2763.6,2763.5,11.054469]
[1724501771119,0.65496227,2763.6,2763.5,11.054469]
[1724501771295,1.61469188,2763.6,2763.5,11.054469]
[1724501771996,1.61469188,2763.6,2763.5,7.23717]
[1724501772194,2.74844761,2763.6,2763.5,7.23717]
[1724501772391,2.74844761,2763.6,2763.5,3.61858]
[1724501772623,2.74808636,2763.6,2763.5,3.61858]
[1724501772925,2.88358847,2763.6,2763.5,3.61858]
[1724501773422,2.74729495,2763.6,2763.5,3.61858]
[1724501774418,2.74697021,2763.6,2763.5,3.61858]
[1724501774732,2.2679,2763.5,2763.3,3.61883]
[1724501774883,4.39341717,2763.4,2763.3,3.61883]
[1724501775482,4.39292002,2763.4,2763.3,3.61883]
[1724501777234,3.619,2763.2,2762.6,3.61967]
[1724501777426,3.619,2763.2,2762.1,6.03905]
[1724501777427,0.75446213,2762.8,2762.1,6.03905]
[1724501777618,0.65461225,2762.7,2762.1,6.03905]
[1724501777817,2.40048372,2762.9,2762.7,3.61964]
[1724501778030,1.60441819,2762.8,2762.7,3.61964]
[1724501778328,2.35845209,2762.8,2762.7,3.61964]
[1724501779437,1.60328636,2762.8,2762.7,3.61964]
[1724501779593,0.64866522,2762.8,2762.7,3.61964]
[1724501779929,2.35655679,2762.8,2762.7,3.61964]
[1724501780140,1.60252289,2762.8,2762.7,3.61964]
[1724501780340,1.602483,2762.8,2762.7,3.61964]
[1724501780548,0.64864922,2762.8,2762.7,3.61964]
[1724501780935,0.64864922,2762.8,2762.5,3.61979]
[1724501781137,2.02238588,2762.6,2762.2,3.62017]
[1724501781422,0.64784498,2762.5,2762.1,3.62036]
[1724501781628,0.64784498,2762.5,2762.3,3.62014]
[1724501781821,0.64784498,2762.5,2762.1,3.62036]
[1724501782042,0.64784498,2762.5,2761.9,3.62064]
[1724501782043,2.4984,2762.3,2761.9,3.62064]
[1724501782225,1.26879052,2762.2,2761.9,3.62064]
[1724501782552,1.26879052,2762.2,2761.8,3.6208]
[1724501783668,2.4984,2762.3,2761.4,3.62126]
[1724501783669,1.26879052,2762.0,2761.4,3.62126]
[1724501783958,2.4984,2761.9,2761.4,3.62132]
[1724501784498,2.4984,2761.9,2761.5,3.62117]
[1724501786122,2.4984,2761.9,2761.6,3.62108]
[1724501786851,2.4984,2761.9,2761.5,3.62117]
[1724501787499,2.4984,2761.9,2761.5,7.24228]
[1724501787701,2.4984,2761.9,2761.6,3.62106]
[1724501787914,2.4984,2761.9,2761.2,3.62152]
[1724501787915,2.74824,2761.9,2761.2,3.62152]
[1724501788134,2.74824,2761.9,2761.3,3.62137]
[1724501789001,6.36894,2761.9,2761.3,3.62137]
[1724501789734,2.74824,2761.9,2761.4,3.62134]
[1724501790055,3.62036,2762.2,2761.7,3.62095]
[1724501790056,5.96206,2762.2,2761.7,3.62095]
[1724501791051,9.58246,2762.2,2761.5,3.62112]
[1724501791263,5.96206,2762.2,2761.5,3.62112]
[1724501791400,6.920275,2762.2,2761.5,3.62112]
[1724501791844,6.920275,2762.2,2761.6,3.62106]
[1724501796445,6.920275,2762.2,2761.6,3.62101]
[1724501797350,6.920275,2762.2,2761.7,3.62094]
[1724501797777,3.299915,2762.2,2761.7,3.62094]
[1724501799077,6.920295,2762.2,2761.5,3.6211]
[1724501799384,3.62043,2762.1,2761.5,3.6211]
[1724501800581,2.3417,2762.2,2761.6,3.62099]
[1724501800772,2.3417,2762.2,2761.8,3.62081]
[1724501802178,2.3417,2762.2,2761.7,3.62094]
[1724501803544,2.3417,2762.2,2761.8,3.62082]
[1724501803770,2.3417,2762.2,2761.8,7.24156]
[1724501803945,2.3417,2762.2,2762.0,3.62055]
[1724501804352,2.3417,2762.2,2761.8,3.62074]
[1724501808224,1.27025802,2762.1,2761.4,3.62124]
[1724501808410,1.27025802,2761.9,2761.4,3.62124]
[1724501808604,1.0963558,2761.8,2761.4,3.62124]
[1724501808904,2.452,2761.8,2761.2,7.44]
[1724501809266,3.62103,2761.7,2761.2,7.44]
[1724501810162,3.62103,2761.7,2761.2,11.06158]
[1724501810910,3.62103,2761.7,2761.2,3.62158]
[1724501811764,3.62103,2761.7,2761.0,6.03456]
[1724501811765,2.452,2761.8,2761.0,7.30484802]
[1724501811965,2.452,2761.8,2761.2,3.62152]
[1724501812272,2.452,2761.6,2761.0,3.62361]
[1724501812536,1.27025802,2761.5,2761.0,3.62361]
[1724501813323,2.452,2761.6,2761.1,3.62172]
[1724501813843,1.27025802,2761.5,2761.1,3.62172]
[1724501814738,2.452,2761.6,2761.2,3.62159]
[1724501814928,2.452,2761.6,2761.1,3.62172]
[1724501815233,2.452,2761.6,2761.1,4.346268]
[1724501816045,2.452,2761.6,2761.1,7.967908]
[1724501816459,2.452,2761.6,2761.1,4.346188]
[1724501816615,2.452,2761.6,2761.1,7.967838]
[1724501816815,2.452,2761.6,2761.2,3.62159]
[1724501817158,2.452,2761.6,2761.2,4.4185498]
[1724501818867,2.452,2761.6,2761.1,3.62164]
[1724501819412,3.20559536,2761.6,2761.1,3.62164]
[1724501820266,1.58805107,2761.5,2761.1,3.62164]
[1724501820572,2.34164643,2761.5,2761.1,3.62164]
[1724501820866,0.75359536,2761.5,2761.1,3.62164]
[1724501821073,1.39478041,2761.5,2761.1,3.62164]
[1724501822212,0.64118505,2761.4,2761.1,3.62164]
[1724501822952,2.34179768,2761.5,2761.3,3.62139]
[1724501823138,0.75359536,2761.6,2761.3,3.62139]
[1724501823453,2.34312963,2761.5,2761.3,3.62139]
[1724501823662,0.64186722,2761.4,2761.3,3.62139]
[1724501823814,0.75359536,2761.5,2761.3,3.62139]
[1724501824271,0.64211454,2761.4,2761.3,3.62139]
[1724501824908,1.59011584,2761.4,2761.3,3.62139]
[1724501825122,0.64211454,2761.4,2761.3,3.62139]
[1724501825367,1.3957099,2761.4,2761.3,8.280723]
[1724501825534,1.5905103,2761.4,2761.3,8.280723]
[1724501826371,1.88528856,2761.5,2761.4,3.62135]
[1724501826535,1.39628703,2761.5,2761.4,7.2427]
[1724501826731,2.34445121,2761.5,2761.4,8.0707553]
[1724501827417,1.59160769,2761.5,2761.4,8.0707553]
[1724501827669,0.64269167,2761.5,2761.4,8.0707553]
[1724501828865,0.75284352,2761.6,2761.4,8.0707553]
[1724501828866,0.75284352,2761.6,2761.5,3.62122]
[1724501829071,1.59301919,2761.6,2761.5,3.62122]
[1724501829278,2.34586271,2761.6,2761.5,3.62122]
[1724501830233,2.34586271,2761.6,2761.5,10.444697]
[1724501830573,1.59317571,2761.6,2761.5,10.444697]
[1724501830756,0.64327523,2761.6,2761.5,10.444697]
[1724501831122,0.75284352,2761.7,2761.6,3.62108]
[1724501831325,2.34618745,2761.7,2761.6,7.24216]
[1724501831526,1.5933441,2761.7,2761.6,8.2866017]
[1724501831786,0.6434066,2761.7,2761.6,8.2866017]
[1724501833442,2.3056868,2761.7,2761.6,8.2866017]
[1724501834564,0.6434066,2761.7,2761.6,8.2866017]
[1724501835963,0.75284352,2761.8,2761.7,3.62095]
[1724501836164,2.24002734,2761.8,2761.7,4.76982287]
[1724501836365,1.48718382,2761.8,2761.7,4.76982287]
[1724501836566,2.24073757,2761.8,2761.7,4.76982287]
[1724501837789,1.48718382,2761.8,2761.7,3.62095]
[1724501838693,2.24072373,2761.8,2761.7,3.62095]
[1724501839069,2.23299382,2761.8,2761.7,3.62095]
[1724501841999,1.47945391,2761.8,2761.7,3.62095]
[1724501842969,2.23299204,2761.8,2761.7,3.62095]
[1724501843600,2.23299204,2761.8,2761.5,6.823467]
[1724501843601,2.23299204,2761.8,2761.5,3.62111]
[1724501843799,2.23304671,2761.7,2761.5,3.62111]
[1724501844013,0.57838189,2761.6,2761.5,3.62111]
[1724501844187,3.78689328,2761.6,2761.5,3.62111]
[1724501844385,4.54043141,2761.6,2761.3,3.62136]
[1724501844621,4.54043141,2761.6,2761.2,11.0616]
[1724501844622,2.23303141,2761.5,2761.2,11.0616]
[1724501844929,2.23303141,2761.4,2761.2,11.0616]
[1724501845123,0.75353813,2761.4,2761.2,11.0616]
[1724501845421,0.57837302,2761.3,2761.2,11.0616]
[1724501845627,0.75353813,2761.4,2761.2,11.0616]
[1724501846896,0.75353813,2761.4,2761.3,3.62148]
[1724501847069,1.47948634,2761.4,2761.3,3.62148]
[1724501847474,2.23302447,2761.4,2761.3,3.62148]
[1724501847711,1.47948634,2761.4,2761.3,3.62148]
[1724501848074,2.23302447,2761.4,2761.3,3.62148]
[1724501848274,0.57839649,2761.4,2761.3,7.24296]
[1724501849003,0.57839649,2761.4,2761.3,9.36454283]
[1724501849177,1.1316932,2761.6,2761.3,9.36454283]
[1724501849178,0.75353813,2761.6,2761.5,3.62122]
[1724501849372,2.23378304,2761.6,2761.5,7.24244]
[1724501850078,0.75353813,2761.6,2761.5,3.62122]
[1724501850373,2.61196664,2761.6,2761.5,3.62122]
[1724501854033,2.61196664,2761.6,2761.5,7.24244]
[1724501854337,1.48027344,2761.6,2761.5,10.453184]
[1724501854540,1.48053934,2761.6,2761.5,10.453184]
[1724501854891,0.75409683,2761.7,2761.6,7.24216]
[1724501855245,2.23486303,2761.7,2761.6,7.24216]
[1724501855946,2.23486303,2761.7,2761.6,8.51242075]
[1724501856088,0.57889497,2761.7,2761.6,9.68473723]
[1724501859228,0.57889497,2761.7,2761.6,13.30581723]
[1724501859430,0.75409683,2762.0,2761.9,7.24138]
[1724501859633,0.75409683,2762.1,2762.0,3.62056]
[1724501859968,0.75409683,2762.1,2762.0,7.24112]
[1724501859969,2.23483265,2762.1,2762.0,7.24112]
[1724501864050,2.4028,2762.0,2761.5,7.44]
[1724501864383,3.15663322,2761.7,2761.5,7.44]
[1724501864587,2.23456904,2761.6,2761.5,11.06122]
[1724501864790,1.48073582,2761.6,2761.5,7.44]
[1724501865149,2.61148565,2761.6,2761.5,7.44]
[1724501865470,7.26310593,2761.6,2761.5,7.44]
[1724501865682,8.53336668,2761.6,2761.5,7.44]
[1724501865868,2.4509,2761.5,2761.2,3.62159]
[1724501866057,1.13074534,2761.3,2761.2,3.62159]
[1724501866299,1.48073582,2761.3,2761.2,3.62159]
[1724501868941,2.23469443,2761.3,2761.2,3.62159]
[1724501869243,2.22673102,2761.3,2761.2,3.62159]
[1724501870297,2.22673102,2761.3,2761.2,7.967714]
[1724501870298,0.57439255,2761.3,2761.2,7.967714]
[1724501870546,0.75395861,2761.4,2761.3,3.62148]
[1724501870843,2.22682102,2761.4,2761.3,3.62148]
[1724501872714,1.47286241,2761.4,2761.3,3.62148]
[1724501873602,2.2268615,2761.4,2761.3,3.62148]
[1724501873802,2.22687473,2761.4,2761.3,3.62148]
[1724501874035,2.22684505,2761.4,2761.3,3.62148]
[1724501878805,2.22661233,2761.4,2761.3,3.62148]
[1724501880018,2.22661233,2761.4,2761.2,3.62159]
[1724501880218,2.22661233,2761.3,2761.1,3.62166]
[1724501880516,2.22661233,2761.3,2761.2,3.62161]
[1724501880517,0.75401232,2761.3,2761.2,3.62161]
[1724501880717,2.22651842,2761.3,2761.2,3.62161]
[1724501881227,1.4725061,2761.3,2761.2,3.62161]
[1724501881557,2.22651842,2761.3,2761.2,3.62161]
[1724501882437,0.57428891,2761.3,2761.2,7.967735]
[1724501882622,0.75401232,2761.5,2761.3,6.07128]
[1724501882953,0.57442698,2761.4,2761.3,9.69276]
[1724501884547,0.75401232,2761.6,2761.3,2.4498]
[1724501884724,0.57442492,2761.5,2761.4,7.2427]
[1724501884926,0.57442492,2761.5,2761.4,8.2844015]
[1724501885641,1.47285796,2761.5,2761.4,8.2844015]
[1724501885954,1.47287359,2761.5,2761.4,8.2844015]
[1724501886151,2.22688591,2761.5,2761.4,8.2844015]
[1724501886351,2.22688591,2761.5,2761.4,7.2427]
[1724501887023,2.22687001,2761.5,2761.4,3.62135]
[1724501888125,2.22687001,2761.5,2761.4,7.2427]
[1724501888732,2.22687001,2761.5,2761.4,3.62135]
[1724501888910,2.22687001,2761.5,2761.4,7.73188357]
[1724501889119,2.22687001,2761.5,2761.4,4.11053357]
[1724501889317,2.22687001,2761.5,2761.4,7.73188357]
[1724501890459,2.22687001,2761.5,2761.4,9.00236925]
[1724501890696,0.75401232,2761.7,2761.6,7.24216]
[1724501890825,0.75401232,2761.9,2761.8,3.62082]
[1724501891016,2.22710533,2761.9,2761.8,3.62082]
[1724501891557,1.13074534,2761.9,2761.8,3.62082]
[1724501891793,1.47299779,2761.9,2761.8,3.62082]
[1724501892078,2.60374313,2761.9,2761.7,3.62095]
[1724501892281,1.47299779,2761.8,2761.5,3.62114]
[1724501892455,2.2270083,2761.7,2761.5,3.62114]
[1724501892648,1.47284345,2761.6,2761.5,3.62114]
[1724501892883,2.22685396,2761.6,2761.5,3.62114]
[1724501893235,1.47284345,2761.6,2761.5,3.62114]
[1724501893438,2.22685396,2761.6,2761.5,3.62114]
[1724501893689,1.47291622,2761.6,2761.5,7.24236]
[1724501894386,1.32848822,2761.6,2761.5,7.24236]
[1724501894536,2.22690233,2761.6,2761.5,7.24236]
[1724501894863,0.57447771,2761.6,2761.5,7.24236]
[1724501896085,1.4728947,2761.6,2761.5,7.24236]
[1724501896269,0.57447771,2761.6,2761.5,7.24236]
[1724501896473,1.32173003,2761.7,2761.6,3.62108]
[1724501896677,2.79458828,2761.7,2761.6,3.62108]
[1724501897375,2.79458828,2761.7,2761.6,7.24216]
[1724501897741,0.57442406,2761.7,2761.6,7.24216]
[1724501898055,0.57442406,2761.7,2761.6,7.68492541]
[1724501898238,0.75401051,2761.8,2761.7,7.2419]
[1724501898437,1.3217166,2762.0,2761.8,3.62082]
[1724501898650,0.57440592,2761.9,2761.8,7.24164]
[1724501899758,1.47279612,2761.9,2761.8,7.24164]
[1724501900097,0.57440592,2761.9,2761.8,8.49922911]
[1724501901269,1.3217166,2762.0,2761.9,7.24138]
[1724501901452,1.47269191,2762.0,2761.9,7.24138]
[1724501901653,0.57435683,2762.0,2761.9,8.51186568]
[1724501901858,0.75401051,2762.2,2762.1,3.62043]
[1724501902106,0.57432532,2762.2,2762.1,9.61003625]
[1724501902254,0.75401051,2762.3,2762.2,3.6203]
[1724501902459,2.22666463,2762.3,2762.2,3.6203]
[1724501902905,2.22666463,2762.3,2761.9,4.89111568]
[1724501903217,2.22666463,2762.2,2761.9,3.62063]
[1724501903496,1.4692897,2762.1,2762.0,3.62056]
[1724501903710,0.57434056,2762.1,2762.0,3.62056]
[1724501904677,1.46926598,2762.1,2762.0,7.24112]
[1724501904986,0.57434056,2762.1,2762.0,7.24112]
[1724501905503,1.46923619,2762.1,2762.0,7.24112]
[1724501905699,0.57434056,2762.1,2762.0,7.24112]
[1724501905905,0.75401051,2762.2,2762.1,3.62043]
[1724501906067,2.21879849,2762.2,2762.1,3.62043]
[1724501908244,1.46478798,2762.2,2762.1,3.62043]
[1724501908529,1.46475137,2762.2,2762.1,7.24086]
[1724501909290,0.5698876,2762.2,2762.1,8.51134568]
[1724501909613,0.5698876,2762.2,2762.1,7.24086]
[1724501909823,0.75401051,2762.3,2762.2,3.6203]
[1724501910023,2.2186851,2762.3,2762.2,3.6203]
[1724501910322,1.46467459,2762.3,2762.2,3.6203]
[1724501910523,2.21841059,2762.3,2762.2,3.6203]
[1724501910726,1.46444888,2762.3,2762.2,3.6203]
[1724501912143,2.03413798,2762.3,2762.2,3.6203]
[1724501912439,1.46438228,2762.3,2762.2,3.6203]
[1724501915038,2.21801761,2762.3,2762.2,7.2406]
[1724501915644,2.21803625,2762.3,2762.2,7.2406]
[1724501915845,1.46440092,2762.3,2762.2,7.2406]
[1724501916163,0.56973668,2762.3,2762.2,7.2406]
[1724501918825,2.21792009,2762.3,2762.2,7.2406]
[1724501919026,1.46428476,2762.3,2762.2,7.2406]
[1724501919239,0.56973668,2762.3,2762.2,7.2406]
[1724501919569,1.46426379,2762.3,2762.2,7.2406]
[1724501919871,0.56973668,2762.3,2762.2,12.98249425]
[1724501920181,1.13074534,2762.5,2762.4,7.24008]
[1724501920471,2.4369,2763.0,2762.6,3.61977]
[1724501920472,0.75363533,2762.7,2762.6,3.61977]
[1724501920673,2.21762444,2762.7,2762.6,3.61977]
[1724501922789,1.46398911,2762.7,2762.6,3.61977]
[1724501923484,2.21762444,2762.7,2762.6,3.61977]
[1724501924161,3.10031673,2762.7,2762.6,3.61977]
[1724501924473,1.45222348,2762.7,2762.6,3.61977]
[1724501924986,2.20585881,2762.7,2762.6,3.61977]
[1724501925274,2.2058163,2762.7,2762.6,3.61977]
[1724501925890,2.4588,2762.6,2762.4,3.61994]
[1724501926062,0.75363533,2762.7,2762.4,3.61994]
[1724501926263,0.56283569,2762.6,2762.5,3.6199]
[1724501926463,1.4520664,2762.6,2762.5,3.6199]
[1724501926903,0.56283569,2762.6,2762.5,3.6199]
[1724501927800,1.45192468,2762.6,2762.5,3.6199]
[1724501927997,2.20556001,2762.6,2762.4,3.61994]
[1724501928152,0.75363533,2762.6,2762.4,3.61994]
[1724501928348,0.75363533,2762.6,2762.2,8.51090568]
[1724501928550,4.66433347,2762.5,2762.3,3.62014]
[1724501928767,1.45191365,2762.4,2762.2,7.24037]
[1724501928984,0.75363533,2762.4,2762.3,3.62017]
[1724501929205,2.20548218,2762.4,2762.3,3.62017]
[1724501930011,1.45184685,2762.4,2762.3,3.62017]
[1724501930210,0.56278026,2762.4,2762.3,3.62017]
[1724501930377,1.45200824,2762.4,2762.3,3.62017]
[1724501930582,0.56278026,2762.4,2762.2,3.62018]
[1724501930767,0.56278461,2762.3,2762.2,3.62018]
[1724501930965,0.75363533,2762.4,2762.3,3.62017]
[1724501931169,0.56278831,2762.4,2762.3,7.24034]
[1724501933668,2.2060981,2762.4,2762.3,3.62017]
[1724501935009,2.19892972,2762.4,2762.3,3.62017]
[1724501937211,2.19892972,2762.4,2762.3,7.24034]
[1724501937412,0.55877653,2762.4,2762.3,8.09142257]
[1724501939319,1.44576595,2762.4,2762.3,8.09142257]
[1724501939519,0.55877653,2762.4,2762.3,8.09142257]
[1724501939672,0.75363533,2762.5,2762.4,7.24008]
[1724501939976,2.19970291,2762.5,2762.4,7.24008]
[1724501940671,1.44606758,2762.5,2762.4,7.24008]
[1724501941075,2.57681292,2762.5,2762.4,3.62004]
[1724501941288,1.44606758,2762.5,2762.4,3.62004]
[1724501941515,2.57762039,2762.5,2762.4,3.62004]
[1724501942269,2.6508301,2762.5,2762.4,3.62004]
[1724501942474,2.65081302,2762.5,2762.4,3.62004]
[1724501942677,2.57783595,2762.5,2762.4,3.62004]
[1724501943289,2.57862017,2762.5,2762.4,7.24008]
[1724501943685,1.4468518,2762.5,2762.4,7.24008]
[1724501945503,2.57862017,2762.5,2762.4,7.24008]
[1724501945677,1.4468518,2762.5,2762.4,7.24008]
[1724501946623,2.20171802,2762.5,2762.4,7.24008]
[1724501947724,1.4468518,2762.5,2762.4,7.24008]
[1724501948144,2.57862017,2762.5,2762.4,7.24008]
[1724501948335,2.65216112,2762.5,2762.4,7.24008]
[1724501948731,2.57918619,2762.5,2762.4,7.24008]
[1724501949547,2.65239698,2762.5,2762.4,7.24008]
[1724501950078,4.16005743,2762.5,2762.4,7.24008]
[1724501950777,2.65239698,2762.5,2762.4,7.24008]
[1724501951281,2.57941679,2762.5,2762.4,7.24008]
[1724501951581,2.57945455,2762.5,2762.4,7.24008]
[1724501952592,2.65252216,2762.5,2762.4,7.24008]
[1724501952794,1.20567036,2762.5,2762.4,7.24008]
[1724501953089,2.6535655,2762.5,2762.4,7.24008]
[1724501953895,2.58060973,2762.5,2762.4,7.24008]
[1724501954883,2.58060977,2762.5,2762.4,7.24008]
[1724501955074,2.65362502,2762.5,2762.4,7.24008]
[1724501955588,2.58060144,2762.5,2762.4,7.24008]
[1724501955886,2.58060144,2762.5,2762.4,9.59988]
[1724501957393,2.58060144,2762.5,2762.4,12.31942825]
[1724501957751,2.58087095,2762.5,2762.4,12.31942825]
[1724501958156,1.44816465,2762.5,2762.4,12.31942825]
[1724501958873,1.44816465,2762.5,2762.4,10.87036568]
[1724501962602,1.1327063,2762.6,2762.4,10.87036568]
[1724501962603,1.1327063,2762.6,2762.5,7.2398]
[1724501962757,2.58119317,2762.6,2762.5,7.2398]
[1724501964300,2.65471359,2762.6,2762.5,7.2398]
[1724501964501,2.58164278,2762.6,2762.5,7.2398]
[1724501965413,4.16228249,2762.6,2762.5,7.2398]
[1724501966390,2.65462204,2762.6,2762.5,7.2398]
[1724501967494,2.64448593,2762.6,2762.5,7.2398]
[1724501968821,2.64069326,2762.6,2762.5,7.2398]
[1724501969849,4.14835371,2762.6,2762.5,3.6199]
[1724501970193,6.9531123,2762.6,2762.5,3.6199]
[1724501970991,2.4238,2762.5,2762.0,7.44]
[1724501971196,1.13310926,2762.1,2762.0,11.06055]
[1724501971433,2.57146002,2762.1,2762.0,11.06055]
[1724501972438,2.56358377,2762.1,2762.0,11.06055]
[1724501973940,1.43047451,2762.1,2762.0,14.68111]
[1724501974641,3.55690926,2762.2,2762.1,3.62043]
[1724501974937,2.5632693,2762.2,2762.1,3.62043]
[1724501975135,2.5632693,2762.2,2762.1,7.24086]
[1724501975450,1.43016004,2762.2,2762.1,7.24086]
[1724501977343,1.43016004,2762.2,2761.9,1.27048568]
[1724501977344,1.13310926,2762.3,2762.2,7.2406]
[1724501977514,2.56331352,2762.3,2762.2,7.2406]
[1724501982083,1.13310926,2762.3,2762.2,7.2406]
[1724501982244,2.56359405,2762.3,2762.2,7.96466]
[1724501983826,2.56359405,2762.3,2762.2,7.2406]
[1724501984741,2.56359405,2762.3,2762.2,7.2406]
[1724501987034,2.56357769,2762.3,2762.2,7.2406]
[1724501990668,2.62961615,2762.3,2762.2,7.2406]